bitfinex-derivatives/quotes_SOLF0:USTF0_20250923
["timestamp","ask_amount","ask_price","bid_price","bid_amount"]
[1758609640533,3.3411432,218.88,218.77,7.28]
[1758609640730,7.68,218.89,218.8,7.28]
[1758609641434,3.33962254,218.88,218.8,7.28]
[1758609641633,7.68,218.89,218.8,7.28]
[1758609641933,7.68,218.96,218.81,63.9375]
[1758609642136,6.98192515,218.95,218.81,63.9375]
[1758609642335,7.44753929,218.94,218.81,4.1102]
[1758609642535,3.33963929,218.93,218.81,63.9378]
[1758609642833,3.33963929,218.92,218.81,63.9378]
[1758609643029,3.33963929,218.91,218.83,4.1098]
[1758609643229,7.68,218.96,218.83,4.1098]
[1758609643437,6.97794746,218.95,218.83,4.1098]
[1758609643739,3.33776827,218.94,218.83,4.1098]
[1758609643940,3.33776827,218.93,218.83,11.3898]
[1758609644233,11.7876,218.96,218.83,11.3898]
[1758609644234,3.33776827,218.92,218.83,11.3898]
[1758609644434,7.68,218.96,218.83,11.3898]
[1758609644636,3.33728591,218.95,218.83,11.3898]
[1758609644936,4.1084,218.92,218.83,7.28]
[1758609645332,4.1086,218.9,218.8,4.1104]
[1758609645539,11.7886,218.9,218.78,7.28]
[1758609645741,7.68,218.9,218.78,7.28]
[1758609646038,3.33764596,218.89,218.78,7.28]
[1758609646228,7.68,218.9,218.78,7.28]
[1758609646433,3.33661385,218.89,218.78,7.28]
[1758609646737,7.68,218.9,218.78,7.28]
[1758609646938,3.33667974,218.89,218.78,7.28]
[1758609647137,7.68,218.9,218.78,7.28]
[1758609647334,7.44448514,218.89,218.78,7.28]
[1758609647530,4.1088,218.89,218.78,7.28]
[1758609647931,4.1092,218.87,218.78,7.28]
[1758609648730,11.7887,218.9,218.78,7.28]
[1758609648938,3.33478066,218.89,218.78,7.28]
[1758609649127,3.33478066,218.88,218.78,7.28]
[1758609649333,4.1094,218.86,218.78,7.28]
[1758609649532,11.01476544,218.85,218.73,7.28]
[1758609649730,3.33476544,218.84,218.73,7.28]
[1758609649931,4.1102,218.82,218.73,11.3918]
[1758609650131,4.1102,218.82,218.73,7.28]
[1758609652342,7.68,218.9,218.75,7.28]
[1758609652541,3.33451459,218.89,218.75,7.28]
[1758609652736,3.33451459,218.88,218.75,7.28]
[1758609652936,3.33451459,218.87,218.75,7.28]
[1758609653142,7.68,218.9,218.8,7.28]
[1758609653342,3.33442262,218.89,218.8,7.28]
[1758609653533,3.33442262,218.88,218.8,7.28]
[1758609653732,7.68,218.9,218.8,71.2205]
[1758609654539,7.68,218.9,218.8,7.28]
[1758609655844,7.68,218.9,218.83,4.1099]
[1758609656043,3.34001348,218.89,218.83,4.1099]
[1758609656243,4.1081,218.93,218.83,11.3899]
[1758609656438,3.33991612,218.92,218.83,11.3899]
[1758609656634,3.33991612,218.91,218.83,7.28]
[1758609656838,7.68,218.94,218.83,7.28]
[1758609657045,3.33978694,218.93,218.83,7.28]
[1758609657344,3.33978694,218.92,218.83,7.28]
[1758609657639,3.33978694,218.91,218.87,4.1091]
[1758609657844,3.33978694,218.91,218.8,63.9405]
[1758609657845,7.68,218.99,218.88,7.28]
[1758609658040,6.98474658,218.98,218.88,7.28]
[1758609658237,3.34119705,218.97,218.88,7.28]
[1758609658434,3.34119705,218.96,218.88,7.28]
[1758609658639,3.34119705,218.95,218.88,7.28]
[1758609658845,3.34119705,218.94,218.9,7.28]
[1758609659046,7.68,218.99,218.9,7.28]
[1758609659344,6.98939288,218.98,218.9,7.28]
[1758609659649,3.34422852,218.97,218.9,7.28]
[1758609659841,3.34422852,218.96,218.9,7.28]
[1758609660036,3.34422852,218.95,218.9,7.28]
[1758609660340,3.34422852,218.94,218.92,7.28]
[1758609660538,7.68,218.99,218.92,7.28]
[1758609660738,3.34519673,218.98,218.92,7.28]
[1758609660939,3.34519673,218.97,218.91,4.1084]
[1758609661150,3.34519673,218.96,218.92,7.23]
[1758609661447,3.34519673,218.95,218.92,7.23]
[1758609661636,3.34519673,218.94,218.92,7.23]
[1758609661838,7.68,218.99,218.92,7.23]
[1758609662043,6.99716405,218.98,218.92,7.23]
[1758609662244,3.34714517,218.97,218.92,7.23]
[1758609662449,3.34714517,218.96,218.92,7.23]
[1758609662647,3.34714517,218.95,218.92,7.23]
[1758609662848,3.34714517,218.94,218.92,7.23]
[1758609663056,3.35122173,218.93,218.92,7.23]
[1758609663254,15.23668813,219.02,218.92,7.23]
[1758609663552,3.35117132,219.01,218.95,7.23]
[1758609663749,3.35117132,219.0,218.92,7.23]
[1758609663949,3.35117132,218.99,218.95,4.1076]
[1758609664152,10.21214,219.02,218.96,7.23]
[1758609664449,3.35243682,219.01,218.93,7.23]
[1758609664652,3.35243682,219.0,218.93,7.23]
[1758609664851,3.35243682,218.99,218.93,7.23]
[1758609665155,3.35243682,218.98,218.93,7.23]
[1758609665358,3.35243682,218.97,218.9,7.23]
[1758609665555,3.35243682,218.96,218.9,7.23]
[1758609665756,3.35243682,218.95,218.89,4.1086]
[1758609665953,7.52,218.99,218.9,7.23]
[1758609666159,7.01768002,218.98,218.86,11.3392]
[1758609666458,7.01768002,218.97,218.86,11.3392]
[1758609666760,7.01977505,218.96,218.86,11.3392]
[1758609666954,3.35806848,218.95,218.88,4.1089]
[1758609667156,3.35806848,218.94,218.88,7.23]
[1758609667351,7.52,218.99,218.88,7.23]
[1758609667552,7.02345461,218.98,218.88,7.23]
[1758609667751,3.36082987,218.97,218.88,7.23]
[1758609667952,3.36082987,218.96,218.88,7.23]
[1758609668152,3.36082987,218.95,218.88,7.23]
[1758609668356,3.36082987,218.94,218.88,7.23]
[1758609668558,3.36082987,218.93,218.87,4.109]
[1758609668753,4.1075,218.96,218.88,7.23]
[1758609668952,3.36231364,218.95,218.88,7.23]
[1758609669557,3.36231364,218.95,218.89,4.1088]
[1758609669758,3.36231364,218.94,218.9,7.23]
[1758609669958,3.36231364,218.93,218.9,7.23]
[1758609670161,3.36231364,218.92,218.81,7.23]
[1758609670361,3.36231364,218.91,218.81,7.23]
[1758609670656,3.36231364,218.9,218.81,7.23]
[1758609672160,3.36231364,218.89,218.81,7.23]
[1758609672463,3.36231364,218.88,218.81,11.3401]
[1758609672666,7.52,218.93,218.82,7.23]
[1758609672859,3.36810233,218.92,218.85,7.23]
[1758609673162,3.36810233,218.91,218.81,7.23]
[1758609673362,3.36810233,218.9,218.81,7.23]
[1758609673663,3.36810233,218.89,218.84,4.1097]
[1758609673865,7.52,218.94,218.84,4.1097]
[1758609674061,6.99754717,218.93,218.84,4.1097]
[1758609674256,3.36849081,218.92,218.84,4.1097]
[1758609674462,7.52,218.94,218.84,4.1097]
[1758609674463,3.36849081,218.91,218.84,4.1097]
[1758609674658,3.36849081,218.9,218.84,4.1097]
[1758609674967,7.52,218.81,218.69,7.23]
[1758609675263,3.36849081,218.8,218.69,7.23]
[1758609675459,3.36849081,218.8,218.71,4.1121]
[1758609675865,3.36849081,218.8,218.71,7.23]
[1758609676568,3.36849081,218.8,218.72,4.112]
[1758609679562,3.36849081,218.8,218.71,7.23]
[1758609681873,4.1107,218.79,218.71,7.23]
[1758609682063,3.36849081,218.78,218.71,7.23]
[1758609682367,4.1107,218.79,218.71,7.23]
[1758609682566,3.36506409,218.78,218.71,7.23]
[1758609682767,4.1107,218.79,218.71,7.23]
[1758609682968,4.1111,218.77,218.71,7.23]
[1758609683863,4.1111,218.77,218.64,7.56]
[1758609684160,4.1115,218.75,218.64,11.6735]
[1758609684562,11.3915,218.75,218.64,11.6735]
[1758609684965,3.36403457,218.74,218.64,11.6735]
[1758609685164,11.3915,218.75,218.64,11.6735]
[1758609685365,3.36261969,218.74,218.64,11.6735]
[1758609685565,4.1119,218.73,218.64,7.56]
[1758609688172,7.28,218.72,218.6,11.6741]
[1758609688375,7.28,218.72,218.6,7.56]
[1758609689767,7.28,218.72,218.62,4.1138]
[1758609690074,7.28,218.72,218.63,7.56]
[1758609691470,4.1122,218.71,218.63,7.56]
[1758609692468,4.1126,218.69,218.63,7.56]
[1758609694679,4.113,218.67,218.59,4.1144]
[1758609694879,4.113,218.67,218.57,7.25]
[1758609695082,7.43,218.68,218.57,7.25]
[1758609695576,7.43,218.68,218.58,4.1146]
[1758609695972,7.43,218.68,218.6,4.1142]
[1758609696378,7.43,218.68,218.59,7.25]
[1758609696576,10.30229218,218.64,218.59,7.25]
[1758609696776,2.87229218,218.61,218.53,7.25]
[1758609696981,7.43,218.64,218.53,7.25]
[1758609697178,2.87229218,218.61,218.53,7.25]
[1758609697684,2.87229218,218.61,218.54,4.1152]
[1758609698177,10.30229218,218.64,218.56,4.115]
[1758609698377,7.43,218.64,218.56,4.115]
[1758609698583,10.30229218,218.64,218.56,4.115]
[1758609698971,10.30229218,218.64,218.57,7.25]
[1758609699377,7.0,218.67,218.58,7.25]
[1758609699575,7.0,218.66,218.58,7.25]
[1758609700486,9.87229218,218.66,218.58,7.25]
[1758609701289,14.43,218.65,218.58,7.25]
[1758609701577,10.30229218,218.63,218.58,7.25]
[1758609702078,7.0,218.62,218.57,7.25]
[1758609702279,7.0,218.62,218.56,7.25]
[1758609703088,7.0,218.62,218.57,2.87229218]
[1758609703278,7.0,218.62,218.58,7.25]
[1758609703479,7.0,218.62,218.57,6.98709218]
[1758609703675,7.0,218.62,218.58,7.25]
[1758609703879,7.0,218.62,218.58,2.87229218]
[1758609704080,7.0,218.62,218.59,7.25]
[1758609704687,7.0,218.62,218.55,7.25]
[1758609705377,7.0,218.62,218.61,7.25]
[1758609705378,5.39284853,218.62,218.61,7.25]
[1758609705582,4.853e-05,218.62,218.61,7.25]
[1758609705884,4.1112,218.77,218.65,4.1133]
[1758609706085,10.78924865,218.76,218.65,4.1133]
[1758609706279,3.36041641,218.75,218.65,4.1133]
[1758609706484,7.43,218.76,218.65,4.1133]
[1758609706678,7.43,218.76,218.67,4.1129]
[1758609707682,4.1114,218.75,218.64,4.1134]
[1758609707889,64.56735256,218.8,218.58,64.0044]
[1758609707890,10.79193194,218.74,218.62,7.25]
[1758609708076,7.43,218.72,218.62,7.25]
[1758609708282,3.36209573,218.71,218.62,7.25]
[1758609709187,3.36209573,218.71,218.58,4.1144]
[1758609709388,10.79209573,218.7,218.58,11.3644]
[1758609709586,3.36209573,218.69,218.58,11.3644]
[1758609711086,3.36209573,218.69,218.58,7.25]
[1758609711087,4.1127,218.68,218.58,7.25]
[1758609711487,10.80088576,218.67,218.58,7.25]
[1758609711689,7.48421876,218.66,218.53,7.25]
[1758609711989,3.37101876,218.65,218.53,7.25]
[1758609712186,4.1135,218.64,218.53,7.25]
[1758609712890,3.37311531,218.63,218.53,7.25]
[1758609713086,4.1135,218.64,218.53,7.25]
[1758609713296,3.37557611,218.63,218.53,7.25]
[1758609713490,3.37557611,218.62,218.53,7.25]
[1758609713689,4.1135,218.64,218.53,7.25]
[1758609713895,3.37540036,218.63,218.54,4.1153]
[1758609714192,3.37540036,218.62,218.54,4.1153]
[1758609714384,7.43,218.67,218.56,11.365]
[1758609714581,3.3776821,218.66,218.56,7.25]
[1758609714785,3.3776821,218.65,218.56,7.25]
[1758609714985,3.3776821,218.64,218.56,7.25]
[1758609715194,3.37959789,218.63,218.56,7.25]
[1758609715391,7.43,218.67,218.56,7.25]
[1758609715593,3.37969536,218.66,218.56,7.25]
[1758609715789,3.37969536,218.65,218.58,4.1146]
[1758609715986,3.37969536,218.64,218.56,7.25]
[1758609716189,3.37969536,218.63,218.56,7.25]
[1758609716497,3.37969536,218.62,218.56,7.25]
[1758609716795,7.43,218.67,218.56,7.25]
[1758609716999,3.38186781,218.66,218.56,7.25]
[1758609717195,3.38186781,218.65,218.56,11.3648]
[1758609717387,3.38186781,218.64,218.56,11.3648]
[1758609717591,3.38186781,218.63,218.56,7.25]
[1758609717794,3.38186781,218.62,218.56,7.25]
[1758609718095,3.38760322,218.61,218.56,7.25]
[1758609718299,7.43,218.67,218.56,7.25]
[1758609718495,3.38754042,218.66,218.56,7.25]
[1758609718796,3.38754042,218.65,218.58,4.1145]
[1758609718985,3.38754042,218.64,218.59,7.25]
[1758609719188,3.38754042,218.63,218.59,7.25]
[1758609719390,3.38754042,218.62,218.59,7.25]
[1758609719588,7.43,218.67,218.59,7.25]
[1758609719792,3.39125462,218.66,218.59,7.25]
[1758609719996,3.39125462,218.65,218.59,7.25]
[1758609720196,3.39125462,218.64,218.58,11.3645]
[1758609720396,3.39125462,218.63,218.58,4.1145]
[1758609720592,5.02454813,218.7,218.55,71.37479573]
[1758609720593,3.39125462,218.62,218.6,4.1142]
[1758609720793,12.31454813,218.73,218.61,7.26]
[1758609720993,7.03787941,218.72,218.56,7.26]
[1758609721195,7.29,218.68,218.56,7.26]
[1758609721395,7.29,218.66,218.56,7.26]
[1758609721599,7.03903971,218.65,218.56,7.26]
[1758609721800,7.03903971,218.64,218.56,7.26]
[1758609722101,3.39117497,218.63,218.56,7.26]
[1758609722295,3.39117497,218.62,218.56,7.26]
[1758609722496,3.39117497,218.61,218.6,7.26]
[1758609723195,7.29,218.66,218.6,7.26]
[1758609723393,7.29,218.66,218.59,4.1144]
[1758609723394,3.34023616,218.65,218.59,7.26]
[1758609723600,7.29,218.71,218.59,7.26]
[1758609723801,6.98856127,218.7,218.59,7.26]
[1758609723997,6.98856127,218.69,218.59,7.26]
[1758609724300,6.98856127,218.68,218.59,7.26]
[1758609724600,3.33963704,218.67,218.64,7.26]
[1758609724898,5.02454813,218.76,218.64,7.26]
[1758609725098,6.98983227,218.75,218.64,7.26]
[1758609725294,6.98983227,218.74,218.64,7.26]
[1758609725495,6.98983227,218.73,218.66,63.982]
[1758609725702,7.29,218.77,218.67,7.26]
[1758609725896,3.33826807,218.76,218.71,4.1121]
[1758609726091,3.33826807,218.75,218.68,63.9754]
[1758609726398,7.29,218.83,218.71,71.2268]
[1758609726604,7.29,218.83,218.72,4.1118]
[1758609726605,6.98656098,218.82,218.72,4.1118]
[1758609726900,3.33736448,218.81,218.72,4.1118]
[1758609727203,3.33736448,218.8,218.72,4.1118]
[1758609727403,3.33736448,218.79,218.72,4.1118]
[1758609727603,3.33736448,218.78,218.72,4.1118]
[1758609727803,7.29,218.83,218.72,4.1118]
[1758609727993,3.33604173,218.82,218.72,4.1118]
[1758609728197,3.33604173,218.81,218.72,4.1118]
[1758609728393,3.33604173,218.8,218.72,4.1118]
[1758609728593,10.62604173,218.79,218.71,7.26]
[1758609728797,3.33604173,218.78,218.71,7.26]
[1758609728994,3.3353411,218.77,218.66,4.113]
[1758609729200,11.4007,218.79,218.66,11.373]
[1758609729398,3.33591091,218.78,218.66,11.373]
[1758609729601,3.33591091,218.77,218.66,11.373]
[1758609729802,11.4007,218.79,218.66,11.373]
[1758609730105,7.29,218.76,218.66,7.26]
[1758609730305,3.33530758,218.75,218.66,7.26]
[1758609730701,3.33530758,218.75,218.61,7.26]
[1758609731101,3.33530758,218.75,218.62,63.992]
[1758609731297,3.33530758,218.75,218.64,7.26]
[1758609732202,7.29,218.76,218.64,7.26]
[1758609732909,7.29,218.76,218.66,7.26]
[1758609733110,7.29,218.81,218.66,7.26]
[1758609733404,3.33452444,218.8,218.66,7.26]
[1758609733609,3.33452444,218.79,218.66,7.26]
[1758609733807,3.33452444,218.78,218.67,63.9784]
[1758609734006,3.33452444,218.77,218.68,7.26]
[1758609734206,7.29,218.81,218.68,7.26]
[1758609734408,3.33396721,218.8,218.7,4.1123]
[1758609734609,3.33396721,218.79,218.7,4.1123]
[1758609734807,3.33396721,218.78,218.7,4.1123]
[1758609735008,3.33396721,218.77,218.7,4.1123]
[1758609735210,7.29,218.81,218.7,4.1123]
[1758609735514,3.33339781,218.8,218.7,4.1123]
[1758609735815,3.33339781,218.79,218.7,4.1123]
[1758609736011,3.33339781,218.78,218.7,4.1123]
[1758609736314,3.33339781,218.77,218.7,4.1123]
[1758609736607,4.1105,218.8,218.7,4.1123]
[1758609736812,7.55,218.78,218.68,7.26]
[1758609737013,3.33253641,218.77,218.68,7.26]
[1758609737216,7.55,218.78,218.68,7.26]
[1758609737513,3.33227623,218.77,218.68,7.26]
[1758609737711,8.18582853,218.83,218.69,63.9734]
[1758609738006,3.33154552,218.82,218.7,7.47]
[1758609738202,3.33154552,218.81,218.7,7.47]
[1758609738400,8.18582853,218.83,218.75,4.1113]
[1758609738605,7.55,218.83,218.75,4.1113]
[1758609739306,7.55,218.83,218.77,4.1109]
[1758609739706,5.02454813,218.92,218.77,4.1109]
[1758609739707,7.55,218.9,218.77,4.1109]
[1758609740012,7.55,218.88,218.77,4.1109]
[1758609740208,3.32811178,218.87,218.77,4.1109]
[1758609740509,3.32811178,218.86,218.77,4.1109]
[1758609740716,3.32811178,218.85,218.77,4.1109]
[1758609741015,11.6591,218.88,218.77,4.1109]
[1758609741309,3.32649018,218.87,218.77,4.1109]
[1758609741510,3.32649018,218.86,218.77,4.1109]
[1758609741709,11.6591,218.88,218.77,4.1109]
[1758609741914,3.32519027,218.87,218.77,4.1109]
[1758609742216,3.32519027,218.86,218.77,4.1109]
[1758609742414,11.6591,218.88,218.77,4.1109]
[1758609742714,3.3241093,218.87,218.77,4.1109]
[1758609742908,11.6591,218.88,218.77,4.1109]
[1758609743109,7.55,218.85,218.77,4.1109]
[1758609743309,7.55,218.85,218.74,11.5814]
[1758609743510,7.55,218.85,218.74,7.47]
[1758609743707,7.55,218.85,218.76,7.47]
[1758609744311,4.1089,218.89,218.76,7.47]
[1758609744512,3.32255525,218.88,218.76,7.47]
[1758609744714,3.32255525,218.87,218.76,7.47]
[1758609745013,11.6589,218.89,218.76,7.47]
[1758609745219,3.3225544,218.88,218.76,7.47]
[1758609745423,11.6589,218.89,218.76,7.47]
[1758609745621,3.32139757,218.88,218.76,7.47]
[1758609745916,11.6589,218.89,218.76,7.47]
[1758609746218,3.32139757,218.88,218.76,7.47]
[1758609746418,11.6589,218.89,218.76,7.47]
[1758609746614,3.32061512,218.88,218.76,7.47]
[1758609746817,11.6589,218.89,218.77,4.1109]
[1758609747020,7.55,218.87,218.77,4.1109]
[1758609747619,4.1095,218.85,218.76,7.47]
[1758609747818,7.55,218.84,218.76,7.47]
[1758609749123,10.41688367,218.84,218.76,7.47]
[1758609750118,10.41688367,218.84,218.76,11.5812]
[1758609750520,7.55,218.84,218.76,11.5812]
[1758609750716,7.55,218.84,218.78,4.1108]
[1758609751020,2.86688367,218.86,218.79,7.67]
[1758609751221,7.31,218.88,218.79,7.67]
[1758609751527,7.31,218.88,218.8,4.1104]
[1758609751722,7.31,218.88,218.8,6.97728367]
[1758609752627,7.31,218.88,218.81,4.1101]
[1758609752821,7.31,218.88,218.8,2.86688367]
[1758609753325,7.31,218.88,218.8,6.97718367]
[1758609753720,7.31,218.88,218.81,62.0]
[1758609753920,2.13194419,219.07,219.06,4.1056]
[1758609754120,7.31,219.18,219.06,3.53798871]
[1758609754326,7.31,219.26,219.15,2.86688367]
[1758609754521,7.31,219.24,219.06,0.21110504]
[1758609754722,7.31,219.22,219.06,0.21110504]
[1758609754927,4.46543937,219.18,219.0,3.72818749]
[1758609755118,63.8334,219.17,219.01,4.02847984]
[1758609755319,7.31,219.1,219.02,4.02847984]
[1758609755624,7.31,219.11,219.03,7.90308069]
[1758609755829,11.0710176,219.04,218.96,67.9996]
[1758609756021,11.0710176,219.04,218.97,79.46730036]
[1758609756328,7.31,219.11,218.98,71.87092322]
[1758609756531,11.0710176,219.04,219.0,7.67]
[1758609756825,11.0710176,219.04,219.01,3.87562322]
[1758609757023,7.31,219.11,219.02,3.87562322]
[1758609757222,11.0710176,219.04,219.03,3.87562322]
[1758609757627,7.31,219.11,219.03,3.87562322]
[1758609757827,11.0710176,219.04,219.0,11.7766]
[1758609758030,11.0710176,219.04,219.01,3.86827875]
[1758609758230,7.31,219.11,219.02,3.86827875]
[1758609758427,11.0710176,219.04,219.03,3.86827875]
[1758609758623,7.31,219.11,219.03,3.86827875]
[1758609758928,7.31,219.11,219.04,3.88731279]
[1758609759224,75.2667,219.11,219.05,3.68639836]
[1758609759431,75.2667,219.11,218.95,7.67]
[1758609759638,11.0710176,219.01,218.97,11.7773]
[1758609759933,7.31,219.05,218.98,3.86773528]
[1758609760130,11.0710176,219.01,218.99,3.86773528]
[1758609760328,7.31,219.1,219.0,3.86773528]
[1758609760524,11.0710176,219.01,218.97,11.7773]
[1758609760720,11.0710176,219.02,218.98,3.86685073]
[1758609761024,11.0710176,219.02,218.99,3.86685073]
[1758609761229,11.0710176,219.02,219.0,3.86685073]
[1758609761230,18.3810176,219.02,219.0,3.86685073]
[1758609761431,18.3810176,219.02,219.01,3.86685073]
[1758609762525,6.09515,219.22,219.13,63.8444]
[1758609762730,7.31,219.3,219.18,63.8297]
[1758609762934,7.31,219.3,219.19,3.85729278]
[1758609763228,7.31,219.3,219.2,3.85729278]
[1758609763532,7.31,219.3,219.21,3.85729278]
[1758609763830,7.31,219.3,219.22,3.85729278]
[1758609764029,7.31,219.3,219.19,63.8269]
[1758609764330,7.31,219.3,219.21,4.1027]
[1758609765020,7.31,219.3,219.24,67.9147]
[1758609765227,7.31,219.43,219.26,63.8066]
[1758609765426,11.49212048,219.46,219.27,63.8031]
[1758609765427,7.31,219.45,219.27,63.8031]
[1758609765627,75.24262048,219.46,219.27,63.8031]
[1758609765827,7.31,219.44,219.28,4.1013]
[1758609766924,7.31,219.39,219.24,4.1021]
[1758609767729,4.0996,219.38,219.24,4.1021]
[1758609767937,7.31,219.37,219.24,4.1021]
[1758609770328,7.31,219.37,219.24,67.9151]
[1758609771329,7.31,219.38,219.25,3.83369793]
[1758609771638,7.31,219.38,219.26,3.83369793]
[1758609771838,7.31,219.38,219.27,3.83369793]
[1758609772033,7.31,219.38,219.24,4.1021]
[1758609772230,7.31,219.38,219.25,3.8293986]
[1758609772431,7.31,219.38,219.26,3.8293986]
[1758609772637,7.31,219.38,219.24,4.1021]
[1758609772835,7.31,219.38,219.25,3.8282474]
[1758609773137,7.31,219.38,219.24,4.1021]
[1758609773339,7.31,219.38,219.25,3.82578613]
[1758609773540,7.31,219.38,219.24,4.1021]
[1758609773839,7.31,219.38,219.25,3.82578613]
[1758609774034,7.31,219.38,219.24,4.1021]
[1758609774235,7.31,219.38,219.25,3.82397865]
[1758609774430,7.31,219.36,219.24,4.1021]
[1758609774633,63.7764,219.37,219.21,4.6127]
[1758609774838,71.0896,219.36,219.21,4.6127]
[1758609775840,4.1003,219.35,219.21,4.6127]
[1758609776040,7.31,219.34,219.21,4.6127]
[1758609777339,7.31,219.32,219.18,4.1033]
[1758609778050,7.31,219.27,219.14,4.104]
[1758609778342,4.1019,219.26,219.16,4.1037]
[1758609778545,7.31,219.27,219.16,4.1037]
[1758609782046,7.31,219.27,219.17,3.83578029]
[1758609782247,7.31,219.27,219.16,4.1037]
[1758609782545,7.31,219.27,219.17,3.83639298]
[1758609782740,7.31,219.27,219.16,4.1037]
[1758609783045,7.3,219.25,219.13,0.51]
[1758609783240,7.3,219.25,219.14,3.8385469]
[1758609783441,7.3,219.25,219.15,7.9424469]
[1758609783643,7.3,219.25,219.15,4.1039]
[1758609784243,7.3,219.25,219.16,3.84027679]
[1758609784444,7.3,219.25,219.15,4.1039]
[1758609784743,7.3,219.25,219.16,3.84100184]
[1758609784944,7.3,219.25,219.15,4.1039]
[1758609785147,7.3,219.25,219.16,3.84100064]
[1758609785346,7.3,219.25,219.15,4.1039]
[1758609785542,7.3,219.25,219.16,3.84306894]
[1758609785740,75.30212048,219.26,219.08,64.3468]
[1758609785741,7.3,219.23,219.08,0.49]
[1758609785947,7.3,219.23,219.09,7.68884333]
[1758609786248,7.3,219.23,219.1,7.68997182]
[1758609786449,7.3,219.23,219.11,3.84476993]
[1758609786648,7.3,219.23,219.12,3.84476993]
[1758609786840,4.1027,219.22,219.13,3.84476993]
[1758609787043,7.3,219.21,219.11,0.49]
[1758609787246,7.3,219.21,219.12,3.84793901]
[1758609787448,7.3,219.21,219.13,3.84793901]
[1758609787645,7.3,219.21,219.14,3.84793901]
[1758609787849,7.3,219.21,219.11,0.49]
[1758609788050,7.3,219.21,219.12,3.84895114]
[1758609788251,7.3,219.3,219.14,0.49]
[1758609788453,7.3,219.3,219.15,3.84895114]
[1758609788652,7.3,219.3,219.16,3.84895114]
[1758609788853,4.1019,219.26,219.17,3.84895114]
[1758609789050,7.3,219.25,219.18,3.84895114]
[1758609789251,7.3,219.25,219.19,3.84895114]
[1758609789456,7.3,219.25,219.16,4.1036]
[1758609789755,7.3,219.25,219.17,3.86145493]
[1758609790047,7.3,219.25,219.18,3.86145493]
[1758609790253,7.3,219.24,219.19,3.86145493]
[1758609790450,7.3,219.24,219.1,3.85717299]
[1758609790655,4.103,219.2,219.11,7.72377497]
[1758609790855,7.3,219.19,219.12,3.86660198]
[1758609791152,7.3,219.19,219.13,3.86660198]
[1758609791356,4.1034,219.18,219.14,3.86660198]
[1758609791551,7.3,219.17,219.09,0.49]
[1758609791750,7.3,219.17,219.1,3.87067516]
[1758609792055,7.3,219.17,219.11,3.87067516]
[1758609792255,7.3,219.18,219.12,3.87422533]
[1758609792554,7.3,219.18,219.13,3.87422533]
[1758609792754,7.3,219.18,219.14,3.87422533]
[1758609792956,7.3,219.18,219.15,3.87422533]
[1758609793145,7.3,219.18,219.09,0.49]
[1758609793352,7.3,219.18,219.1,7.74955525]
[1758609793549,4.1035,219.17,219.11,3.87920633]
[1758609793749,7.3,219.16,219.12,3.87920633]
[1758609793950,7.3,219.16,219.13,3.87920633]
[1758609794152,7.3,219.16,219.14,3.87920633]
[1758609794352,7.3,219.16,219.15,3.87920633]
[1758609795255,7.3,219.16,219.15,3.88855882]
[1758609796655,4.1029,219.21,219.15,3.88855882]
[1758609796855,7.17,219.2,219.16,7.77364214]